fUST/lending_fUST_20250612
["ID","MTS","AMOUNT","RATE_DAILY","PERIOD"]
[365472635,1749693038787,-160.0,0.00021582,2]
[365472637,1749693038796,-160.0,0.00021582,2]
[365472639,1749693038805,-160.0,0.00021582,2]
[365472641,1749693038815,-844.64040732,0.00021582,2]
[365472643,1749693038826,-835.03886221,0.00021582,2]
[365472645,1749693038835,-229.71724145,0.00021582,2]
[365472647,1749693038845,-424.19973472,0.00021582,2]
[365472649,1749693038854,-213.16534259,0.00021582,2]
[365472651,1749693038864,-543.24,0.00021587,2]
[365472652,1749693038874,-255.31869899,0.00021587,4]
[365472653,1749693038883,-460.0,0.00021587,4]
[365472654,1749693038894,-460.0,0.00021587,4]
[365472655,1749693038904,-224.63958153,0.00021591,2]
[365472656,1749693038913,-500.0,0.00021614,2]
[365472657,1749693038922,-500.0,0.00021614,2]
[365472658,1749693038931,-500.0,0.00021614,2]
[365472659,1749693038941,-460.0,0.00021643,4]
[365472660,1749693038950,-460.0,0.00021643,4]
[365472661,1749693038959,-460.0,0.00021643,4]
[365472662,1749693038968,-348.8138739,0.00021737,2]
[365472663,1749693038977,-511.66705719,0.00021737,2]
[365472664,1749693038987,-1000.0,0.000218,2]
[365472665,1749693038995,-766.12,0.0002181,7]
[365472666,1749693039004,-500.0,0.00021856,2]
[365472667,1749693039014,-543.24,0.00021861,2]
[365472668,1749693039023,-460.0,0.00021861,4]
[365472669,1749693039032,-460.0,0.00021861,4]
[365472670,1749693039041,-449.81338324,0.000219,6]
[365472671,1749693039050,-508.29871738,0.00021917,4]
[365472672,1749693039060,-460.0,0.00021917,4]
[365472673,1749693039069,-460.0,0.00021917,4]
[365472674,1749693039078,-766.12,0.00021936,7]
[365472675,1749693039090,-1000.0,0.00022,2]
[365472676,1749693039099,-1000.0,0.00022,2]
[365472677,1749693039108,-449.81338316,0.00022003,6]
[365472678,1749693039117,-766.12,0.00022062,7]
[365472679,1749693039126,-753.77296226,0.00022098,2]
[365472680,1749693039137,-176.29134077,0.00022098,2]
[365472681,1749693039146,-449.81338316,0.00022107,6]
[365472682,1749693039156,-543.24,0.00022135,2]
[365472683,1749693039168,-460.0,0.00022135,4]
[365472684,1749693039177,-460.0,0.00022135,4]
[365472685,1749693039186,-1054.82077354,0.00022162,2]
[365472686,1749693039195,-1082.43398316,0.00022162,2]
[365472687,1749693039205,-1000.0,0.00022162,2]
[365472688,1749693039214,-162.21662294,0.00022166,2]
[365472689,1749693039223,-407.0,0.00022168,2]
[365472690,1749693039232,-5048.71204942,0.00022179,2]
[365472691,1749693039241,-207.4,0.00022179,2]
[365472692,1749693039250,-866.1474,0.00022187,2]
[365472693,1749693039259,-766.12,0.00022188,7]
[365472694,1749693039268,-460.0,0.00022191,4]
[365472695,1749693039277,-460.0,0.00022191,4]
[365472696,1749693039287,-156.20177959,0.000222,69]
[365472697,1749693039296,-449.81338316,0.0002221,6]
[365472698,1749693039305,-2171.32,0.00022211,2]
[365472699,1749693039314,-407.0,0.00022231,2]
[365472700,1749693039324,-407.0,0.00022264,2]
[365472701,1749693039333,-449.81338316,0.00022314,7]
[365472702,1749693039342,-766.12,0.00022315,7]
[365472703,1749693039351,-963.0,0.00022327,2]
[365472704,1749693039361,-655.321,0.00022327,2]
[365472705,1749693039370,-2160.0,0.00022327,2]
[365472706,1749693039383,-536.3578684,0.00022404,2]
[365472707,1749693039394,-543.24,0.00022409,2]
[365472708,1749693039403,-460.0,0.00022409,4]
[365472709,1749693039412,-460.0,0.00022409,4]
[365472710,1749693039422,-449.81338316,0.00022417,7]
[365472711,1749693039431,-407.0,0.00022432,2]
[365472712,1749693039440,-766.12,0.00022441,7]
[365472713,1749693039450,-3131.6576244,0.00022448,2]
[365472714,1749693039459,-460.0,0.00022465,4]
[365472715,1749693039469,-460.0,0.00022465,4]
[365472716,1749693039478,-449.81338316,0.00022521,7]
[365472717,1749693039487,-204.67731562,0.00022558,2]
[365472718,1749693039497,-766.12,0.00022567,7]
[365472719,1749693039506,-420.0,0.00022587,2]
[365472720,1749693039515,-178.0,0.000226,4]
[365472721,1749693039526,-178.42197298,0.000226,4]
[365472722,1749693039535,-161.6,0.00022615,2]
[365472723,1749693039544,-449.81338316,0.00022624,7]
[365472724,1749693039554,-407.0,0.00022648,2]
[365472725,1749693039568,-407.0,0.00022657,2]
[365472726,1749693039577,-543.24,0.00022683,2]
[365472727,1749693039586,-460.0,0.00022683,4]
[365472728,1749693039596,-460.0,0.00022683,4]
[365472729,1749693039605,-766.12,0.00022693,7]
[365472730,1749693039615,-1012.73188408,0.0002271,2]
[365472731,1749693039625,-449.81338316,0.00022728,7]
[365472732,1749693039635,-460.0,0.00022739,4]
[365472733,1749693039644,-460.0,0.00022739,4]
[365472734,1749693039654,-2000.0,0.000228,3]
[365472735,1749693039664,-2000.0,0.000228,4]
[365472736,1749693039674,-783.76873054,0.000228,5]
[365472737,1749693039717,-216.23126946,0.000228,5]
[365472738,1749693039733,-1005.35,0.000228,6]
[365472739,1749693039747,-766.12,0.00022819,7]
[365472740,1749693039757,-449.81338316,0.00022831,8]
[365472741,1749693039767,-164.41279704,0.000229,2]
[365472742,1749693039777,-957.91255245,0.0002291,2]
[365472743,1749693039787,-518.37059137,0.0002292,2]
[365472773,1749693040512,-460.0,0.00021643,4]
[365472775,1749693040522,-460.0,0.00021917,4]
[365472777,1749693040531,-460.0,0.00022191,4]
[365472779,1749693040541,-156.20177956,0.000222,69]
[365472781,1749693040550,-460.0,0.00022465,4]
[365472783,1749693040559,-460.0,0.00022739,4]
[365472785,1749693040569,-2408.84366708,0.0002292,2]
[365472788,1749693040582,-72.78574155,0.0002292,2]
[365472790,1749693040592,-3000.0,0.0002293,2]
[365472792,1749693040601,-401.03469079,0.00022934,8]
[365472794,1749693040612,-48.77869237,0.00022934,8]
[365472796,1749693040622,-3000.0,0.0002294,2]
[365472798,1749693040631,-766.12,0.00022945,7]
[365472800,1749693040642,-3000.0,0.0002295,2]
[365472802,1749693040652,-541.58779468,0.00022956,2]
[365472804,1749693040661,-543.24,0.00022957,2]
[365472806,1749693040670,-460.0,0.00022957,4]
[365472808,1749693040680,-381.20847039,0.00022957,4]
[365472811,1749693040692,-78.79152961,0.00022957,4]
[365472813,1749693040701,-2450.93275597,0.0002296,2]
[365472815,1749693040713,-549.06724403,0.0002296,2]
[365472817,1749693040723,-3000.0,0.0002297,2]
[365472819,1749693040733,-152.974894,0.0002297,7]
[365472821,1749693040742,-3000.0,0.0002298,2]
[365472823,1749693040751,-3000.0,0.0002299,2]
[365472825,1749693040761,-7059.7938312,0.00022999,2]
[365473093,1749693043256,-11136.77864751,0.00022999,2]
[365473095,1749693043266,-6544.23926396,0.00022999,2]
[365473097,1749693043275,-152.055796,0.00022999,7]
[365473099,1749693043285,-151.0,0.00022999,7]
[365473117,1749693043434,-151.0,0.00022999,7]
[365473119,1749693043443,-151.0,0.00022999,7]
[365473121,1749693043453,-500.0,0.00022999,2]
[365473123,1749693043462,-531.3013877,0.00022999,2]
[365473125,1749693043471,-500.0,0.00022999,2]
[365473127,1749693043480,-500.0,0.00022999,2]
[365473129,1749693043489,-500.0,0.00022999,2]
[365473132,1749693043499,-500.0,0.00022999,2]
[365473134,1749693043508,-151.0,0.00022999,7]
[365473136,1749693043517,-151.0,0.00022999,7]
[365473138,1749693043526,-151.0,0.00022999,7]
[365473140,1749693043535,-151.0,0.00022999,7]
[365473142,1749693043544,-3000.0,0.00023,2]
[365473144,1749693043554,-16268.97384349,0.00023,7]
[365473146,1749693043563,-12042.23098288,0.00023,2]
[365473148,1749693043573,-800.0,0.00023,2]
[365473150,1749693043582,-151.0,0.00023,7]
[365473152,1749693043593,-85.9842804,0.00023,7]
[365473155,1749693043604,-143.6308196,0.00023,7]
[365473157,1749693043616,-126.2546174,0.00023,7]
[365473158,1749693043629,-103.3604826,0.00023,7]
[365473159,1749693043639,-151.0,0.00023,7]
[365473160,1749693043647,-7.8884654,0.00023,7]
[365473161,1749693043658,-143.1115346,0.00023,7]
[365473162,1749693043668,-151.0,0.00023,7]
[365473163,1749693043678,-151.528137,0.00023,7]
[365473164,1749693043687,-151.0,0.00023,7]
[365473165,1749693043696,-174.5215,0.00023,7]
[365473166,1749693043705,-151.0,0.00023,7]
[365473167,1749693043714,-151.0,0.00023,7]
[365473168,1749693043723,-151.0,0.00023,7]
[365473169,1749693043732,-152.777772,0.00023,7]
[365473170,1749693043741,-151.0,0.00023,7]
[365473171,1749693043751,-151.0,0.00023,7]
[365473172,1749693043760,-151.0,0.00023,7]
[365473173,1749693043769,-151.0,0.00023,7]
[365473174,1749693043778,-151.0,0.00023,7]
[365473175,1749693043787,-151.0,0.00023,7]
[365473176,1749693043796,-160.0,0.00023,7]
[365473177,1749693043806,-2611.92625321,0.0002301,2]
[365473178,1749693043818,-388.07374679,0.0002301,2]
[365473180,1749693043827,-229.6151,0.0002301,7]
[365473181,1749693043837,-229.6151,0.0002301,7]
[365473183,1749693043847,-460.0,0.00023013,4]
[365473185,1749693043856,-460.0,0.00023013,4]
[365473187,1749693043866,-460.0,0.00023013,4]
[365473189,1749693043876,-4765.001394,0.0002302,2]
[365473192,1749693043886,-449.81338316,0.00023038,8]
[365473194,1749693043900,-407.0,0.00023069,2]
[365473195,1749693043911,-766.12,0.00023072,7]
[365473197,1749693043920,-789.20700775,0.00023127,3]
[365473199,1749693043932,-382.15318425,0.00023127,3]
[365473200,1749693043941,-449.81338316,0.00023141,8]
[365473201,1749693043951,-164.41279701,0.00023167,2]
[365473202,1749693043961,-2895.09,0.00023177,2]
[365473203,1749693043971,-766.12,0.00023198,7]
[365473204,1749693043980,-250.0,0.00023224,2]
[365473205,1749693043989,-543.24,0.00023231,2]
[365473206,1749693043998,-471.351252,0.00023231,7]
[365473207,1749693044007,-471.351252,0.00023231,7]
[365473208,1749693044017,-460.0,0.00023231,4]
[365473209,1749693044027,-460.0,0.00023231,4]
[365473210,1749693044036,-449.81338316,0.00023245,8]
[365473211,1749693044045,-152.026733,0.00023275,7]
[365473212,1749693044054,-151.0,0.00023275,7]
[365473213,1749693044063,-151.0,0.00023275,7]
[365473214,1749693044072,-151.0,0.00023275,7]
[365473215,1749693044081,-347.022073,0.00023275,2]
[365473216,1749693044094,-347.022073,0.00023275,2]
[365473217,1749693044106,-393.340192,0.00023275,7]
[365473218,1749693044115,-393.340192,0.00023275,7]
[365473219,1749693044124,-157.321059,0.00023275,7]
[365473220,1749693044134,-151.0,0.00023283,7]
[365473221,1749693044146,-460.0,0.00023287,4]
[365473222,1749693044155,-460.0,0.00023287,4]
[365473223,1749693044164,-460.0,0.00023287,4]
[365473224,1749693044173,-1440.62227805,0.000233,2]
[365473225,1749693044186,-681.30772195,0.000233,2]
[365473226,1749693044195,-766.12,0.00023324,7]
[365473227,1749693044204,-449.81338316,0.00023348,9]
[365473228,1749693044214,-407.0,0.0002338,2]
[365473229,1749693044223,-151.0,0.0002338,7]
[365473230,1749693044232,-151.0,0.0002338,7]
[365473231,1749693044241,-164.41279701,0.00023433,2]
[365473232,1749693044250,-67.14878719,0.0002345,7]
[365473233,1749693044261,-253.74189733,0.0002345,7]
[365473234,1749693044273,-445.22931548,0.0002345,7]
[365473235,1749693044282,-449.81338316,0.00023452,9]
[365473236,1749693044292,-471.351252,0.00023465,7]
[365473237,1749693044301,-471.351252,0.00023465,7]
[365473238,1749693044310,-162.21662294,0.00023499,2]
[365473239,1749693044319,-229.6151,0.000235,7]
[365473240,1749693044329,-229.6151,0.000235,7]
[365473241,1749693044339,-151.0,0.000235,7]
[365473242,1749693044348,-151.0,0.000235,7]
[365473243,1749693044357,-151.0,0.000235,7]
[365473244,1749693044366,-151.0,0.000235,7]
[365473245,1749693044376,-151.0,0.000235,7]
[365473246,1749693044386,-156.608518,0.000235,7]
[365473247,1749693044400,-151.0,0.000235,7]
[365473248,1749693044409,-175.127706,0.000235,7]
[365473249,1749693044419,-151.0,0.000235,7]
[365473250,1749693044428,-5373.35804232,0.000235,2]
[365473251,1749693044438,-543.24,0.00023505,2]
[365473252,1749693044448,-460.0,0.00023505,4]
[365473253,1749693044458,-460.0,0.00023505,4]
[365473255,1749693044468,-407.0,0.00023507,2]
[365473257,1749693044478,-407.0,0.00023527,2]
[365473258,1749693044488,-151.0,0.00023528,6]
[365473259,1749693044497,-215.0738,0.00023548,2]
[365473260,1749693044506,-449.81338316,0.00023555,9]
[365473261,1749693044515,-460.0,0.00023561,4]
[365473262,1749693044524,-460.0,0.00023561,4]
[365473263,1749693044534,-460.0,0.00023561,4]
[365473264,1749693044544,-500.0,0.00023573,2]
[365473265,1749693044553,-600.0,0.00023573,2]
[365473266,1749693044563,-164.5544328,0.00023573,2]
[365473267,1749693044572,-500.0,0.00023573,2]
[365473268,1749693044581,-507.31842925,0.00023573,2]
[365473269,1749693044591,-500.0,0.00023573,2]
[365473270,1749693044600,-500.0,0.00023573,2]
[365473271,1749693044610,-500.0,0.00023573,2]
[365473272,1749693044619,-504.48703827,0.00023573,2]
[365473273,1749693044629,-500.0,0.00023573,2]
[365473274,1749693044638,-500.0,0.00023573,2]
[365473275,1749693044652,-766.12,0.00023576,7]
[365473276,1749693044662,-500.0,0.000236,9]
[365473277,1749693044671,-60783.0821079,0.000236,2]
[365473278,1749693044681,-56263.64468207,0.000236,7]
[365473363,1749693068109,7665.44340484,0.00024933,60]
[365473364,1749693074278,-500.0,0.0002076,2]
[365473366,1749693091811,-166.0273955,0.0002076,2]
[365473369,1749693173908,2014.64497024,0.0002493,60]
[365473373,1749693263047,163.191088,0.00013699,2]
[365473379,1749693349295,221.4,0.00018,2]
[365473455,1749693959988,7168.70131088,0.00024931,60]
[365473520,1749694232441,-639.78,0.00020052,2]
[365473522,1749694232451,-607.09977112,0.00021007,2]
[365473524,1749694232463,-429.40816382,0.00021007,2]
[365473545,1749694232651,-243.05206506,0.00021007,2]
[365473547,1749694232661,-164.91434512,0.00021095,2]
[365473570,1749694238491,-295.08565488,0.00021095,2]
[365473571,1749694238503,-288.67983018,0.00021254,2]
[365473572,1749694238515,-909.63679362,0.00021254,2]
[365473573,1749694238525,-209.6380944,0.00021356,2]
[365473574,1749694238536,-460.0,0.00021369,2]
[365473575,1749694238546,-300.0,0.00021558,2]
[365473576,1749694238556,-835.15920933,0.00021559,2]
[365473577,1749694238565,-424.26423502,0.00021559,2]
[365473578,1749694238575,-160.0,0.00021559,2]
[365473579,1749694238584,-160.0,0.00021559,2]
[365473580,1749694238593,-160.0,0.00021559,2]
[365473581,1749694238606,-213.20212768,0.00021559,2]
[365473582,1749694238615,-844.79171733,0.00021559,2]
[365473583,1749694238624,-229.71724145,0.00021562,2]
[365473584,1749694238635,-460.0,0.00021643,2]
[365473585,1749694238645,-651.7223985,0.00021645,2]
[365473586,1749694238655,-383.07,0.0002181,7]
[365473587,1749694238664,-201.64048228,0.000219,6]
[365473588,1749694238674,-460.0,0.00021917,2]
[365473589,1749694238684,-1919.34,0.00021962,2]
[365473590,1749694238694,-201.6404821,0.00022007,6]
[365473591,1749694238707,-383.07,0.00022076,7]
[365473592,1749694238717,-201.6404821,0.00022114,6]
[365473593,1749694238726,-460.0,0.00022191,2]
[365473594,1749694238736,-156.20177956,0.000222,69]
[365473595,1749694238745,-207.4,0.00022204,2]
[365473596,1749694238754,-201.6404821,0.00022221,6]
[365473597,1749694238764,-153.0545007,0.000223,2]
[365473598,1749694238773,-500.0,0.000223,2]
[365473599,1749694238783,-201.6404821,0.00022329,7]
[365473600,1749694238792,-383.07,0.00022343,7]
[365473601,1749694238802,-184.571,0.00022343,2]
[365473602,1749694238811,-317.72677077,0.00022395,4]
[365473603,1749694238821,-1361.15,0.00022395,4]
[365473604,1749694238831,-460.0,0.00022395,4]
[365473605,1749694238990,-453.97964025,0.00022395,4]
[365473606,1749694239001,-150.115,0.00022396,2]
[365473607,1749694239011,-963.0,0.00022396,2]
[365473608,1749694239021,-2160.0,0.00022396,2]
[365473609,1749694239030,-176.62644646,0.00022396,2]
[365473610,1749694239043,-476.37355354,0.00022396,2]
[365473611,1749694239052,-322.15273999,0.00022396,2]
[365473612,1749694239063,-221.25726001,0.00022396,2]
[365473613,1749694239074,-201.6404821,0.00022436,7]
[365473614,1749694239083,-460.0,0.00022465,2]
[365473615,1749694239094,-201.6404821,0.00022543,7]
[365473616,1749694239103,-383.07,0.00022609,7]
[365473617,1749694239112,-201.6404821,0.0002265,7]
[365473618,1749694239122,-1361.15,0.00022669,4]
[365473619,1749694239131,-460.0,0.00022669,4]
[365473620,1749694239141,-460.0,0.00022739,2]
[365473621,1749694239151,-201.6404821,0.00022757,7]
[365473622,1749694239161,-156.20177956,0.00022827,72]
[365473623,1749694239170,-1005.54271582,0.00022848,2]
[365473624,1749694239180,-201.6404821,0.00022864,8]
[365473625,1749694239189,-383.07,0.00022875,7]
[365473626,1749694239199,-18.8082946,0.00022917,2]
[365473627,1749694239211,-1000.9999859,0.00022917,2]
[365473628,1749694239222,-1539.3117195,0.00022917,2]
[365473629,1749694239232,-1130.54485404,0.00022943,4]
[365473656,1749694243565,-230.60514596,0.00022943,4]
[365473657,1749694243575,-122.69885444,0.00022943,4]
[365473661,1749694246554,-337.30114556,0.00022943,4]
[365473662,1749694246564,-71.69953674,0.00022971,8]
[365473771,1749694659104,163.191088,0.00013699,2]
[365473777,1749694793692,151.0,0.0002493,60]
[365473783,1749694862902,1376.0,0.00024931,60]
[365473871,1749695417742,310.0,0.000246,120]
[365473923,1749695432742,-577.19,0.0002009,2]
[365473925,1749695432752,-1270.1733818,0.00020947,2]
[365473927,1749695432762,-1154.38,0.00021047,2]
[365473929,1749695432772,-1688.6889182,0.00021413,2]
[365473931,1749695432782,-196.1815304,0.00021479,2]
[365473933,1749695432792,-182.2495095,0.00021504,2]
[365473935,1749695432802,-276.233438,0.00021532,2]
[365473937,1749695432812,-300.0,0.00021558,2]
[365473939,1749695432822,-1200.0,0.00021558,2]
[365473941,1749695432831,-300.0,0.00021564,2]
[365473943,1749695432840,-300.0,0.00021564,2]
[365473945,1749695432851,-1026.40239764,0.00021564,2]
[365473947,1749695432860,-160.0,0.00021565,2]
[365473949,1749695432875,-229.7508257,0.00021565,2]
[365473951,1749695432884,-160.0,0.00021565,2]
[365473953,1749695432894,-160.0,0.00021565,2]
[365473955,1749695432903,-835.15920933,0.00021565,2]
[365473957,1749695432912,-53.36468464,0.00021565,2]
[365473959,1749695432925,-370.89955038,0.00021565,2]
[365473961,1749695432934,-822.80229463,0.00021565,2]
[365474579,1749695446741,-21.9894227,0.00021565,2]
[365474580,1749695446752,-213.20212768,0.00021565,2]
[365474581,1749695446762,-733.06051962,0.00022004,2]
[365475498,1749695640256,-545.82,0.00020047,2]
[365475499,1749695640279,-1091.64,0.00021001,2]
[365475500,1749695640301,-160.0,0.00021001,2]
[365475501,1749695640323,-160.0,0.00021565,2]
[365475502,1749695640344,-835.15920933,0.00021565,2]
[365475503,1749695640364,-424.26423502,0.00021565,2]
[365475504,1749695640385,-160.0,0.00021565,2]
[365475505,1749695640406,-1637.46,0.00021956,2]
[365475506,1749695640426,-229.7508257,0.00022,2]
[365475507,1749695640446,-160.0,0.00022,2]
[365475508,1749695640467,-300.0,0.00022001,2]
[365475509,1749695640489,-156.20177956,0.000222,69]
[365475510,1749695640509,-207.4,0.00022204,2]
[365475511,1749695640530,-189.0,0.00022298,2]
[365475512,1749695640552,-503.80456573,0.00022433,2]
[365475513,1749695640574,-2160.0,0.00022503,2]
[365475514,1749695640594,-653.0,0.00022503,2]
[365475515,1749695640615,-405.0,0.00022503,2]
[365475516,1749695640635,-963.0,0.00022624,2]
[365475517,1749695640659,-300.0,0.00022667,2]
[365475518,1749695640683,-417.85462488,0.00022668,4]
[365475519,1749695640703,-460.0,0.00022668,2]
[365475520,1749695640726,-460.0,0.00022668,4]
[365475521,1749695640747,-631.68541145,0.00022675,2]
[365475522,1749695640768,-162.21662294,0.00022888,2]
[365475523,1749695640788,-3272.11963198,0.00022898,2]
[365475524,1749695640812,-9098.28623935,0.00022899,2]
[365475525,1749695640997,-188.16953341,0.00022899,4]
[365475526,1749695641025,-460.0,0.00022899,4]
[365475527,1749695641053,-1210.17,0.00022899,4]
[365475528,1749695641085,-246.92735162,0.000229,8]
[365475529,1749695641112,-173.29,0.00022905,2]
[365475530,1749695641137,-687.77996903,0.00022911,2]
[365475549,1749695850448,163.191088,0.00013699,2]
[365475553,1749695963432,-495.39,0.00020074,2]
[365475554,1749695963456,-990.77,0.0002103,2]
[365475555,1749695963477,-229.7508257,0.00021565,2]
[365475556,1749695963500,-160.0,0.00021565,2]
[365475557,1749695963521,-276.2334396,0.00021902,2]
[365475558,1749695963545,-1486.16,0.00021985,2]
[365475559,1749695963566,-220.78853116,0.00022224,2]
[365475560,1749695963588,-405.0,0.00022594,2]
[365475561,1749695963611,-835.15920933,0.00022894,2]
[365475562,1749695963633,-424.26423502,0.00022894,2]
[365475563,1749695963654,-300.0,0.00022898,2]
[365475564,1749695963678,-482.08,0.00022899,4]
[365475565,1749695963702,-460.0,0.00022899,4]
[365475566,1749695963724,-590.7819618,0.000229,2]
[365475567,1749695963752,-238.69643988,0.000229,8]
[365475568,1749695963775,-460.0,0.00022915,4]
[365475569,1749695963796,-844.83532796,0.00022929,2]
[365475570,1749695963818,-723.0,0.0002294,2]
[365475571,1749695963840,-315.09002955,0.00022941,2]
[365475592,1749696097909,47447.86498136,0.000246,120]
[365475828,1749696632116,-222.68424801,0.000198,2]
[365475829,1749696632126,-84.25923262,0.00019828,6]
[365475830,1749696632141,-1868.18933624,0.00019828,6]
[365476134,1749696643036,-479.76993325,0.00019828,6]
[365476458,1749696646364,-2403.26884145,0.00019828,6]
[365476460,1749696646376,-164.51265644,0.00019828,6]
[365476462,1749696646385,-453.55,0.00020028,2]
[365476464,1749696646399,-230.73989171,0.000209,4]
[365476466,1749696646409,-907.09,0.00020982,2]
[365476468,1749696646418,-230.73989168,0.00021038,4]
[365476470,1749696646428,-230.73989168,0.00021176,4]
[365476472,1749696646439,-230.73989168,0.00021314,5]
[365476474,1749696646448,-1764.443425,0.00021328,2]
[365476476,1749696646458,-230.73989168,0.00021452,5]
[365476478,1749696646470,-300.0,0.00021566,2]
[365476481,1749696646482,-160.0,0.00021567,2]
[365476483,1749696646492,-229.7508257,0.00021567,2]
[365476485,1749696646503,-835.15920933,0.00021567,2]
[365476487,1749696646513,-31.7944251,0.00021567,2]
[365477065,1749696737605,-315.0,0.00020037,2]
[365477069,1749696804499,-420.0,0.00020054,2]
[365477076,1749696869888,-4975.0,0.00019853,2]
[365477096,1749696922059,706.94531955,0.00024657,120]
[365477098,1749696945509,-25.0,0.00019853,2]
[365477099,1749696945547,-435.0,0.00020056,2]
[365477102,1749697008854,-4907.0,0.00019855,2]
[365477104,1749697038505,-166.0273955,0.00019268,2]
[365477105,1749697042291,-166.0273955,0.00018305,2]
[365477108,1749697055622,-333.9726045,0.00018305,2]
[365477109,1749697055644,-166.0273955,0.00019268,2]
[365477112,1749697073751,-162.0,0.00019268,2]
[365477115,1749697089172,163.191088,0.00013699,2]
[365477117,1749697137801,-5.945209,0.00019268,2]
[365477118,1749697137823,-31.37564036,0.00019855,2]
[365477119,1749697137845,-434.1,0.00019926,2]
[365477120,1749697137866,-363.57915064,0.00020283,2]
[365477121,1749697205970,-418.0,0.00019958,2]
[365477125,1749697271189,-300.0,0.00019933,2]
[365477129,1749697338332,-405.0,0.00019913,2]
[365477131,1749697444748,-405.0,0.00019905,2]
[365477163,1749697509866,-396.0,0.00019915,2]
[365477167,1749697525202,1214.79531999,0.00024932,60]
[365477173,1749697641698,-377.0,0.00019913,2]
[365477177,1749697708196,-300.0,0.00019907,2]
[365477211,1749697832126,-395.47,0.00019919,2]
[365477212,1749697832136,-136.42084936,0.00020283,2]
[365477213,1749697832146,-769.79984424,0.00020867,2]
[365477581,1749697841373,-21.15015576,0.00020867,2]
[365477583,1749697841383,-440.90509581,0.00020909,2]
[365477585,1749697841393,-500.0,0.0002135,2]
[365477587,1749697841402,-723.0,0.0002165,2]
[365477589,1749697841411,-5630.7135433,0.00021651,2]
[365477591,1749697841423,-1128.3005224,0.00021651,2]
[365477593,1749697841432,-300.0,0.00021809,2]
[365477595,1749697841442,-300.0,0.0002181,2]
[365477597,1749697841451,-1186.42,0.00021816,2]
[365477599,1749697841461,-433.24511596,0.00021873,2]
[365477601,1749697841471,-207.4,0.00022135,2]
[365477603,1749697841481,-156.20177956,0.000222,69]
[365477605,1749697841490,-728.43258208,0.00022212,2]
[365477832,1749697843061,-234.56741792,0.00022212,2]
[365477834,1749697843071,-2160.0,0.00022212,2]
[365477836,1749697843081,-653.0,0.00022212,2]
[365477838,1749697843094,-500.0,0.00022418,2]
[365477840,1749697843103,-1024.940168,0.00022482,3]
[365477842,1749697843113,-835.15920933,0.00022597,2]
[365477844,1749697843123,-424.26423502,0.00022597,2]
[365477846,1749697843132,-229.7508257,0.00022597,2]
[365477848,1749697843142,-160.0,0.00022597,2]
[365477850,1749697843151,-185.74281136,0.000226,4]
[365477852,1749697843161,-460.0,0.00022749,4]
[365477856,1749697843171,-447.05642403,0.00022757,4]
[365477860,1749697843181,-1581.89,0.00022764,2]
[365477863,1749697843190,-800.0,0.00022814,2]
[365477866,1749697843199,-160.0,0.0002282,2]
[365477871,1749697843209,-162.21662294,0.00022869,2]
[365477876,1749697843219,-150.184154,0.000229,2]
[365477882,1749697843229,-173.29,0.0002291,2]
[365477886,1749697843238,-417.85462488,0.0002292,4]
[365477890,1749697843248,-460.0,0.0002292,4]
[365477894,1749697843258,-152.047976,0.00022927,7]
[365477897,1749697843268,-151.0,0.00022927,7]
[365477900,1749697843277,-151.0,0.00022927,7]